{"text_format":"1","workbook":"xlsx","n_sheets":5,"sheets":["Início","Gerar Pedido","Lista de produtos","Clientes","Sobre a Excel Easy"],"not_rendered":{"charts":0,"images":9,"macros":1,"external_links":0,"defined_names":13,"comments":0,"pivot_tables":0},"unopened":[],"bounds":{"document_bytes":16777216,"sheet_cells":100000,"rows_first":2000,"rows_last":500,"rows_between":2000,"halvings":0,"cell_chars":16384,"cell_head_chars":4096},"cells_cut":0,"cells_raw":0,"read":"whole","date_system":"1900"}

{"sheet":"Início","index":0,"n_rows":4,"n_cols":4,"rows_kept":4,"cut":false,"hidden":false,"merged":[[3,3,3,10]]}
[]
[]
[]
[null,null,null,"Planilha para Orçamentos e Pedidos"]

{"sheet":"Gerar Pedido","index":1,"n_rows":51,"n_cols":6,"rows_kept":51,"cut":false,"hidden":false,"merged":[[7,2,7,5],[33,5,33,6],[29,5,29,6],[10,2,10,3],[28,5,28,6],[44,1,47,3],[14,5,14,6],[15,5,15,6],[16,5,16,6],[17,5,17,6],[18,5,18,6],[19,5,19,6],[20,5,20,6],[21,5,21,6],[22,5,22,6],[23,5,23,6],[24,5,24,6],[25,5,25,6],[26,5,26,6],[1,1,5,3],[44,5,44,6],[41,5,41,6],[42,5,42,6],[43,5,43,6],[13,5,13,6],[35,5,35,6],[36,5,36,6],[37,5,37,6],[38,5,38,6],[39,5,39,6],[40,5,40,6],[27,5,27,6],[30,5,30,6],[31,5,31,6],[32,5,32,6],[48,5,48,6],[34,5,34,6],[45,5,45,6],[46,5,46,6],[47,5,47,6]]}
[{"$f":"COUNTA(B15:B44)+1","v":1}]
[null,"Insira aqui o banner da sua empresa"]
[null,null,null,null,null,"PEDIDO No"]
[null,null,null,null,null,0]
[]
[]
[]
[null,"Nome:"]
[null,"CNPJ/CPF:",{"$f":"IFERROR(VLOOKUP(C8,Clientes!A3:F500,2,FALSE),\"\")","v":""},null,"Data:",{"$f":"TODAY()","v":"2019-08-19"}]
[null,"Endereço:",{"$f":"IFERROR(VLOOKUP(C8,Clientes!A3:F500,3,FALSE),\"\")","v":""},null,"Cidade/Estado:",{"$f":"IFERROR(VLOOKUP(C8,Clientes!A3:F500,4,FALSE),\"\")","v":""}]
[null,"Fone:",{"$f":"IFERROR(VLOOKUP(C8,Clientes!A3:F500,5,FALSE),\"\")","v":""},null,"Celular:",{"$f":"IFERROR(VLOOKUP(C8,Clientes!A3:F500,6,FALSE),\"\")","v":""}]
[]
[]
[null,"Código","Produto","Quantidade","Valor Unitário","Valor R$"]
[null,null,null,null,null,{"$f":"IF(E15=\"\",\"\",E15*D15)","v":""}]
[null,null,null,null,null,{"$f":"IF(E16=\"\",\"\",E16*D16)","v":""}]
[null,null,null,null,null,{"$f":"IF(E17=\"\",\"\",E17*D17)","v":""}]
[null,null,null,null,null,""]
[null,null,null,null,null,""]
[null,null,null,null,null,""]
[null,null,null,null,null,""]
[null,null,null,null,null,""]
[null,null,null,null,null,""]
[null,null,null,null,null,""]
[null,null,null,null,null,""]
[null,null,null,null,null,""]
[null,null,null,null,null,""]
[null,null,null,null,null,""]
[null,null,null,null,null,""]
[null,null,null,null,null,""]
[null,null,null,null,null,""]
[null,null,null,null,null,""]
[null,null,null,null,null,""]
[null,null,null,null,null,""]
[null,null,null,null,null,""]
[null,null,null,null,null,""]
[null,null,null,null,null,""]
[null,null,null,null,null,""]
[null,null,null,null,null,""]
[null,null,null,null,null,""]
[null,null,null,null,null,""]
[null,null,null,null,null,""]
[null,null,null,null,null,""]
[null,null,null,null,null,""]
[null,null,null,null,"Desconto"]
[null,null,null,null,"Total",{"$f":"SUM(F15:G44)","v":0}]
[null,null,null,null,"Total com desconto",{"$f":"F46-((F46*F45))","v":0}]
[null,null,null,null,"Válido até"]
[null,"Observações",null,null,"Forma de Pagamento"]
[]
[null,"Assinatura:"]

{"sheet":"Lista de produtos","index":2,"n_rows":22,"n_cols":3,"rows_kept":22,"cut":false,"hidden":false,"merged":[]}
[]
["Produto","Código","Valor Unitário"]
["Can Opener","HH-001",50]
["Scissors (3-pack)","HH-002",50]
["Ice Cube Tray","HH-003",50]
["Trash Can","HH-004",50]
["Vacuum","HH-005",700]
["Mini-Fridge","HH-006",688]
["Space Heater","HH-007",688]
["Air Conditioner","HH-008",688]
["Dining Room Table","HH-009",50]
["Dresser / Bureau","HH-010",50]
["Windshield Wiper","AU-001",50]
["Replacement Headlight","AU-002",50]
["Gas Cap","AU-003",50]
["Leather Seat Cover","Vacuum",50]
["Tires (Set of 4)","AU-005",50]
["Wiffle Ball Set","OA-001",50]
["Frisbee","OA-002",50]
["Horseshoe Set","OA-003",50]
["Patio Table","OA-004",50]
["Tent","OA-005",50]

{"sheet":"Clientes","index":3,"n_rows":4,"n_cols":6,"rows_kept":4,"cut":false,"hidden":false,"merged":[]}
[]
["Nome:","CNPJ/CPF:","Endereço:","Cidade/Estado:","Fone:","Celular:"]
["Pedro da Silva",1234456777,"Av Paulista","São Paulo /SP","(11) 3232-0000","(11) 9999-0000"]
["Marcos Aguar",4667765555,"Av Brasil","Rio de Janeiro/RJ","(21) 4444-0909","(21) 8890-0003"]

{"sheet":"Sobre a Excel Easy","index":4,"n_rows":1,"n_cols":4,"rows_kept":1,"cut":false,"hidden":false,"merged":[[0,3,2,14],[2,0,3,0]]}
[null,null,null,"O Excel Easy nasceu em 2014 com o objetivo de unificar todo o material relacionado ao software Excel de modo a tornar-se um site de apoio para aqueles que desejam aprender e revisar quaisquer assuntos relacionados a este programa. Saiba mais sobre nós:"]